fUSD/lending_fUSD_20250510
["ID","MTS","AMOUNT","RATE_DAILY","PERIOD"]
[360554710,1746886243241,-276.61500536,0.00019997,2]
[360554711,1746886243283,-123.38499464,0.00019997,2]
[360554712,1746886243293,-232.91201084,0.00019997,2]
[360554713,1746886243305,-167.08798916,0.00019997,2]
[360554714,1746886243315,-400.0,0.00019997,2]
[360554715,1746886243324,-400.0,0.00019997,2]
[360554716,1746886243334,-400.0,0.00019997,2]
[360554717,1746886243344,-428.12,0.00019997,2]
[360554718,1746886243354,-400.0,0.00019997,2]
[360554719,1746886243363,-400.0,0.00019997,2]
[360554720,1746886243373,-400.0,0.00019997,2]
[360554721,1746886243383,-400.0,0.00019997,2]
[360554722,1746886243392,-400.0,0.00019997,2]
[360554723,1746886243402,-400.0,0.00019997,2]
[360554724,1746886243411,-400.0,0.00019997,2]
[360554725,1746886243421,-400.0,0.00019997,2]
[360554726,1746886243431,-400.0,0.00019997,2]
[360554727,1746886243440,-400.0,0.00019997,2]
[360554728,1746886243450,-368.20620479,0.00019997,2]
[360554729,1746886243467,-357.59379521,0.00019997,2]
[360554730,1746886243477,-400.0,0.00019997,2]
[360554731,1746886243487,-268.50431545,0.00019997,2]
[360554740,1746886246096,-22695.85700508,0.0001899,2]
[360554741,1746886246105,-400.0,0.00019972,2]
[360554742,1746886246114,-325.99732478,0.00019972,2]
[360554743,1746886246125,-82.34482613,0.00019972,2]
[360554744,1746886246137,-400.0,0.00019972,2]
[360554745,1746886246148,-301.35568455,0.00019997,2]
[360554746,1746886246157,-775.48,0.00019997,2]
[360554747,1746886246167,-400.0,0.00019997,2]
[360554748,1746886246177,-400.0,0.00019997,2]
[360554749,1746886246187,-400.0,0.00019997,2]
[360554750,1746886246196,-400.0,0.00019997,2]
[360554751,1746886246206,-451.79,0.00019997,2]
[360554752,1746886246215,-400.0,0.00019997,2]
[360554753,1746886246225,-400.0,0.00019997,2]
[360554754,1746886246235,-400.0,0.00019997,2]
[360554755,1746886246244,-400.0,0.00019997,2]
[360554756,1746886246253,-400.0,0.00019997,2]
[360554757,1746886246262,-379.82935875,0.00019997,2]
[360554758,1746886246271,-400.0,0.00019997,2]
[360554759,1746886246281,-400.0,0.00019997,2]
[360554760,1746886246291,-400.0,0.00019997,2]
[360554761,1746886246301,-500.0,0.00019997,2]
[360554762,1746886246311,-400.0,0.00019997,2]
[360554763,1746886246321,-400.0,0.00019997,2]
[360554764,1746886246330,-441.23,0.00019997,2]
[360554765,1746886246340,-400.0,0.00019997,2]
[360554766,1746886246349,-427.92,0.00019997,2]
[360554767,1746886246358,-400.0,0.00019997,2]
[360554768,1746886246369,-400.0,0.00019997,2]
[360554769,1746886246378,-400.0,0.00019997,2]
[360554770,1746886246388,-400.0,0.00019997,2]
[360554771,1746886246397,-370.0,0.00019997,2]
[360554772,1746886246406,-450.0,0.00019997,2]
[360554773,1746886246415,-450.0,0.00019997,2]
[360554774,1746886246425,-400.0,0.00019997,2]
[360554775,1746886246434,-400.0,0.00019997,2]
[360554776,1746886246444,-400.0,0.00019997,2]
[360554777,1746886246453,-1000.0,0.00019998,2]
[360554778,1746886246463,-400.0,0.00019998,2]
[360554779,1746886246472,-400.0,0.00019998,2]
[360554780,1746886246481,-400.0,0.00019998,2]
[360554781,1746886246491,-400.0,0.00019998,2]
[360554782,1746886246500,-400.0,0.00019998,2]
[360554783,1746886246510,-312.90784996,0.00019998,2]
[360554786,1746886246523,-400.0,0.00019998,2]
[360554788,1746886246532,-400.0,0.00019998,2]
[360554790,1746886246542,-400.0,0.00019998,2]
[360554792,1746886246553,-275.97346743,0.00019998,2]
[360554794,1746886246562,-400.0,0.00019998,2]
[360554795,1746886246571,-400.0,0.00019998,2]
[360554798,1746886246580,-400.0,0.00019998,2]
[360554800,1746886246590,-309.8231115,0.00019998,2]
[360554802,1746886246599,-400.0,0.00019998,2]
[360554803,1746886246608,-500.0,0.00019998,2]
[360554805,1746886246617,-603.96,0.00019998,2]
[360554806,1746886246626,-400.0,0.00019998,2]
[360554807,1746886246635,-236.62201853,0.00019998,2]
[360554808,1746886246644,-400.0,0.00019998,2]
[360554809,1746886246653,-432.7,0.00019998,2]
[360554810,1746886246662,-400.0,0.00019998,2]
[360554811,1746886246671,-400.0,0.00019998,2]
[360554812,1746886246680,-400.0,0.00019998,2]
[360554813,1746886246689,-400.0,0.00019998,2]
[360554814,1746886246698,-300.0,0.00019998,2]
[360554815,1746886246707,-400.0,0.00019998,2]
[360554816,1746886246715,-484.62,0.00019998,2]
[360554817,1746886246724,-400.0,0.00019998,2]
[360554818,1746886246733,-400.0,0.00019998,2]
[360554819,1746886246742,-400.0,0.00019998,2]
[360554820,1746886246751,-436.11,0.00019998,2]
[360554821,1746886246760,-400.0,0.00019998,2]
[360554822,1746886246769,-400.0,0.00019998,2]
[360554823,1746886246778,-400.0,0.00019998,2]
[360554824,1746886246787,-400.0,0.00019998,2]
[360554826,1746886246796,-400.0,0.00019998,2]
[360554828,1746886246806,-400.0,0.00019998,2]
[360554830,1746886246815,-400.0,0.00019998,2]
[360554832,1746886246823,-400.0,0.00019998,2]
[360554834,1746886246833,-400.0,0.00019998,2]
[360554836,1746886246842,-426.48328016,0.00019998,2]
[360554838,1746886246851,-400.0,0.00019998,2]
[360554840,1746886246860,-400.0,0.00019998,2]
[360554842,1746886246869,-400.0,0.00019998,2]
[360554844,1746886246878,-400.0,0.00019998,2]
[360554846,1746886246888,-400.0,0.00019998,2]
[360554848,1746886246897,-400.0,0.00019998,2]
[360554850,1746886246907,-408.37,0.00019998,2]
[360554852,1746886246916,-400.0,0.00019998,2]
[360554854,1746886246925,-408.37,0.00019998,2]
[360554856,1746886246935,-484.83321331,0.00019998,2]
[360554858,1746886246945,-408.37,0.00019998,2]
[360554860,1746886246954,-408.37,0.00019998,2]
[360554862,1746886246964,-400.0,0.00019998,2]
[360554864,1746886246973,-400.0,0.00019998,2]
[360554866,1746886246982,-184.34285958,0.00019998,2]
[360554967,1746886247934,-215.65714042,0.00019998,2]
[360554969,1746886247943,-400.0,0.00019998,2]
[360554971,1746886247952,-400.0,0.00019998,2]
[360554973,1746886247961,-400.0,0.00019998,2]
[360554975,1746886247970,-400.0,0.00019998,2]
[360554977,1746886247979,-400.0,0.00019998,2]
[360554979,1746886247988,-418.12,0.00019998,2]
[360554981,1746886247998,-418.12,0.00019998,2]
[360554983,1746886248007,-160.76559262,0.00019998,2]
[360555001,1746886248180,-257.35440738,0.00019998,2]
[360555002,1746886248191,-418.12,0.00019998,2]
[360555004,1746886248200,-246.82561262,0.00019998,2]
[360555081,1746886268203,-236.53915161,0.00019328,2]
[360555082,1746886323824,-35.35084839,0.00019328,2]
[360555083,1746886323852,-116.64915161,0.00019537,2]
[360555087,1746886366701,150.0,0.0003,30]
[360555096,1746886525178,500.0,0.00016438,2]
[360555097,1746886525542,500.0,0.00016438,2]
[360555098,1746886526152,500.0,0.00016438,2]
[360555099,1746886526513,500.0,0.00016438,2]
[360555100,1746886526890,204.28960766,0.00016438,2]
[360555101,1746886528267,500.0,0.00016438,2]
[360555102,1746886528648,500.0,0.00016438,2]
[360555103,1746886529082,500.0,0.00016438,2]
[360555104,1746886529458,500.0,0.00016438,2]
[360555105,1746886529785,500.0,0.00016438,2]
[360555106,1746886616657,-152.29118431,0.00017,2]
[360555107,1746886626100,-97.70881569,0.00017,2]
[360555108,1746886809372,-2065.5674522,0.00043645,30]
[360555109,1746886809401,-3269547.59986538,0.00043645,30]
[360555110,1746886809427,-1728386.83268242,0.00043645,30]
[360555111,1746886813210,-1632002.15137054,0.00043645,30]
[360555112,1746886813238,-206825.10344429,0.00043645,30]
[360555113,1746886813264,-255730.46999089,0.00043645,30]
[360555114,1746886813290,-51998.41156074,0.00043645,30]
[360555115,1746886813316,-256728.83840222,0.00043645,30]
[360555116,1746886813344,-311081.17994092,0.00043645,30]
[360555117,1746886813370,-3500.0,0.00043645,30]
[360555118,1746886813395,-31733.47349559,0.00043645,30]
[360555119,1746886813422,-500.0,0.00043645,120]
[360555120,1746886813447,-500.0,0.00043645,120]
[360555121,1746886813473,-500.0,0.00043645,120]
[360555122,1746886813499,-500.0,0.00043645,120]
[360555123,1746886813525,-500.0,0.00043645,120]
[360555124,1746886813551,-500.0,0.00043645,120]
[360555125,1746886813576,-504.38,0.00043645,120]
[360555126,1746886813602,-500.0,0.00043645,120]
[360555127,1746886813628,-500.0,0.00043645,120]
[360555128,1746886813654,-500.0,0.00043645,120]
[360555129,1746886813681,-500.0,0.00043645,120]
[360555130,1746886813708,-227.82593122,0.00043645,120]
[360555131,1746886813734,-201.74726024,0.00043645,120]
[360555132,1746886813759,-500344.41276884,0.00043645,30]
[360555133,1746886813783,-500989.74693351,0.00043645,60]
[360555134,1746886813808,-25697.35228634,0.00043645,120]
[360555135,1746886813834,-5000.0,0.00043645,30]
[360555136,1746886813859,-193.70100188,0.00043645,60]
[360555137,1746886813884,-1000.0,0.00043645,30]
[360555138,1746886813909,-952.55,0.00043645,120]
[360555139,1746886813934,-952.55,0.00043645,120]
[360555140,1746886813959,-952.55,0.00043645,120]
[360555141,1746886813985,-952.55,0.00043645,120]
[360555142,1746886814011,-952.55,0.00043645,120]
[360555143,1746886814038,-952.55,0.00043645,120]
[360555144,1746886814064,-952.55,0.00043645,120]
[360555145,1746886814089,-952.55,0.00043645,120]
[360555146,1746886814115,-952.55,0.00043645,120]
[360555147,1746886814141,-952.55,0.00043645,120]
[360555148,1746886814167,-952.55,0.00043645,120]
[360555149,1746886814193,-952.55,0.00043645,120]
[360555150,1746886814219,-952.55,0.00043645,120]
[360555151,1746886814245,-952.55,0.00043645,120]
[360555152,1746886814271,-952.55,0.00043645,120]
[360555153,1746886814297,-952.55,0.00043645,120]
[360555154,1746886814325,-952.55,0.00043645,120]
[360555155,1746886814350,-952.55,0.00043645,120]
[360555156,1746886814378,-952.55,0.00043645,120]
[360555157,1746886814409,-952.55,0.00043645,120]
[360555158,1746886814438,-952.55,0.00043645,120]
[360555159,1746886814465,-952.55,0.00043645,120]
[360555160,1746886814492,-952.55,0.00043645,120]
[360555161,1746886814522,-952.59050927,0.00043645,120]
[360555162,1746886814549,-520.28882539,0.00043645,30]
[360555163,1746886814575,-1676.11810296,0.00043645,120]
[360555164,1746886814602,-2892.11,0.00043645,120]
[360555165,1746886814633,-2892.11,0.00043645,120]
[360555166,1746886814661,-2892.11,0.00043645,120]
[360555167,1746886814690,-2892.11,0.00043645,120]
[360555168,1746886814717,-2892.11,0.00043645,120]
[360555169,1746886814745,-2892.11,0.00043645,120]
[360555170,1746886814774,-2892.11,0.00043645,120]
[360555171,1746886814802,-2892.11,0.00043645,120]
[360555172,1746886814828,-2892.11,0.00043645,120]
[360555173,1746886814854,-2892.11,0.00043645,120]
[360555174,1746886814882,-2892.11,0.00043645,120]
[360555175,1746886814909,-2892.11,0.00043645,120]
[360555176,1746886815128,-2892.11,0.00043645,120]
[360555177,1746886815157,-2892.11,0.00043645,120]
[360555178,1746886815186,-2892.11,0.00043645,120]
[360555179,1746886815214,-2892.11,0.00043645,120]
[360555180,1746886815241,-2892.11,0.00043645,120]
[360555181,1746886815270,-2892.11,0.00043645,120]
[360555182,1746886815297,-2892.11,0.00043645,120]
[360555183,1746886815326,-2892.11,0.00043645,120]
[360555184,1746886815354,-2892.11,0.00043645,120]
[360555185,1746886815385,-2892.11,0.00043645,120]
[360555186,1746886815412,-2892.11,0.00043645,120]
[360555187,1746886815439,-2892.12358059,0.00043645,120]
[360555188,1746886815464,-157.0,0.00043645,31]
[360555189,1746886815489,-157.0,0.00043645,31]
[360555190,1746886815516,-500.0,0.00043645,120]
[360555191,1746886815550,-500.0,0.00043645,120]
[360555192,1746886815582,-257.87183975,0.00043645,120]
[360555193,1746886815610,-4635.81376061,0.00043645,120]
[360555194,1746886815638,-186.69113833,0.00043645,60]
[360555195,1746886815666,-2938.28634985,0.00043645,90]
[360555196,1746886815694,-1332.81167011,0.00043645,120]
[360555197,1746886815721,-6300.2435491,0.00043645,120]
[360555198,1746886815748,-505.40141474,0.00043645,30]
[360555199,1746886815776,-189.72902844,0.00043645,91]
[360555200,1746886815803,-259.82204022,0.00043645,30]
[360555201,1746886815831,-982.44109335,0.00043645,120]
[360555202,1746886815858,-302.81590793,0.00043645,120]
[360555203,1746886815885,-327.00328997,0.00043645,120]
[360555204,1746886815910,-2360.0,0.00043645,90]
[360555205,1746886815936,-184.3562615,0.00043645,120]
[360555206,1746886815962,-1030.51232002,0.00043645,30]
[360555207,1746886815988,-1001.35774019,0.00043645,120]
[360555208,1746886816015,-845.20802591,0.00043645,90]
[360555209,1746886816041,-715.64490063,0.00043645,120]
[360555210,1746886816068,-341.0330077,0.00043645,60]
[360555211,1746886816098,-281.66201414,0.00043645,30]
[360555212,1746886816124,-295.00766903,0.00043645,120]
[360555213,1746886816152,-290.66052182,0.00043645,120]
[360555214,1746886816178,-1367.60723211,0.00043645,120]
[360555215,1746886816205,-250.08370423,0.00043645,120]
[360555216,1746886816232,-311.42437692,0.00043645,60]
[360555217,1746886816258,-331.28998842,0.00043645,120]
[360555218,1746886816284,-547.21476276,0.00043645,120]
[360555219,1746886816314,-1357.89775385,0.00043645,120]
[360555220,1746886816341,-191.53220861,0.00043645,120]
[360555221,1746886816368,-174.89345902,0.00043645,30]
[360555222,1746886816394,-221.01474251,0.00043645,30]
[360555223,1746886816419,-1364.72509094,0.00043645,120]
[360555224,1746886816445,-172.04530415,0.00043645,60]
[360555225,1746886816471,-269.34513657,0.00043645,30]
[360555226,1746886816500,-257.21718326,0.00043645,30]
[360555227,1746886816527,-1568.72629016,0.00043645,120]
[360555228,1746886816556,-1389.37270189,0.00043645,120]
[360555229,1746886816583,-5047.54799464,0.00043645,120]
[360555230,1746886816609,-674.10967753,0.00043645,120]
[360555231,1746886816635,-214.58652739,0.00043645,30]
[360555232,1746886816662,-516.33877181,0.00043645,30]
[360555233,1746886816689,-2029.72530783,0.00043645,30]
[360555234,1746886816715,-264.54335931,0.00043645,120]
[360555235,1746886816741,-719.96655166,0.00043645,120]
[360555236,1746886816766,-310.6067079,0.00043645,30]
[360555237,1746886816792,-261.86953997,0.00043645,30]
[360555238,1746886816818,-1196.47788679,0.00043645,120]
[360555239,1746886816844,-344.03278945,0.00043645,120]
[360555240,1746886816870,-191.95094591,0.00043645,120]
[360555241,1746886816895,-1277.54762265,0.00043645,120]
[360555242,1746886816922,-567.54538261,0.00043645,120]
[360555243,1746886816949,-179.99827035,0.00043645,120]
[360555244,1746886816974,-616.54002981,0.00043645,30]
[360555245,1746886816999,-505.47841995,0.00043645,30]
[360555246,1746886817026,-625.82,0.00043645,120]
[360555247,1746886817053,-625.82,0.00043645,120]
[360555248,1746886817081,-625.82,0.00043645,120]
[360555249,1746886817108,-625.82,0.00043645,120]
[360555250,1746886817136,-625.82,0.00043645,120]
[360555251,1746886817163,-625.82,0.00043645,120]
[360555252,1746886817189,-625.82,0.00043645,120]
[360555253,1746886817216,-625.82,0.00043645,120]
[360555254,1746886817243,-625.82,0.00043645,120]
[360555255,1746886817269,-625.82,0.00043645,120]
[360555256,1746886817296,-625.82,0.00043645,120]
[360555257,1746886817326,-625.82,0.00043645,120]
[360555258,1746886817353,-625.82,0.00043645,120]
[360555259,1746886817382,-625.82,0.00043645,120]
[360555260,1746886817410,-625.82,0.00043645,120]
[360555261,1746886817438,-625.82,0.00043645,120]
[360555262,1746886817467,-625.82,0.00043645,120]
[360555263,1746886817495,-625.82,0.00043645,120]
[360555264,1746886817524,-625.82,0.00043645,120]
[360555265,1746886817552,-625.82,0.00043645,120]
[360555266,1746886817580,-625.82,0.00043645,120]
[360555267,1746886817608,-625.82,0.00043645,120]
[360555268,1746886817636,-625.82,0.00043645,120]
[360555269,1746886817665,-626.02,0.00043645,120]
[360555270,1746886817860,-500.0,0.00043645,120]
[360555271,1746886817888,-500.0,0.00043645,120]
[360555272,1746886817915,-500.0,0.00043645,120]
[360555273,1746886817943,-500.0,0.00043645,120]
[360555274,1746886817969,-602.83,0.00043645,120]
[360555275,1746886817996,-500.0,0.00043645,120]
[360555276,1746886818023,-500.0,0.00043645,120]
[360555277,1746886818051,-500.0,0.00043645,120]
[360555278,1746886818079,-500.0,0.00043645,120]
[360555279,1746886818107,-500.0,0.00043645,120]
[360555280,1746886818136,-500.0,0.00043645,120]
[360555281,1746886818164,-170.50177043,0.00043645,120]
[360555282,1746886818194,-50000.0,0.00043645,30]
[360555283,1746886818225,-50000.0,0.00043645,31]
[360555284,1746886818255,-50000.0,0.00043645,32]
[360555285,1746886818286,-50000.0,0.00043645,33]
[360555286,1746886818317,-50000.0,0.00043645,34]
[360555287,1746886818344,-257.05598155,0.00043645,30]
[360555288,1746886818373,-2000.0,0.00043645,31]
[360555289,1746886818400,-1163.35475912,0.00043645,30]
[360555290,1746886818427,-3701.85513527,0.00043645,30]
[360555291,1746886818456,-787285.7976839,0.00043645,30]
[360555292,1746886821946,-1510522.29965046,0.00043645,30]
[360555293,1746886821975,-4169.7234966,0.00043645,30]
[360555294,1746886822003,-1000.0,0.00043645,120]
[360555295,1746886822031,-5000.0,0.00043645,120]
[360555296,1746886822058,-14316.2578518,0.00043645,30]
[360555297,1746886822086,-4534.18468642,0.00043645,30]
[360555298,1746886822113,-7499.999998,0.00043645,30]
[360555299,1746886822139,-4968.31987482,0.00043645,30]
[360555300,1746886822165,-10195.63025977,0.00043645,30]
[360555301,1746886822194,-1000.0,0.00043645,120]
[360555302,1746886822221,-500.0,0.00043645,120]
[360555303,1746886822247,-500.0,0.00043645,120]
[360555304,1746886822273,-500.0,0.00043645,120]
[360555305,1746886822300,-500.0,0.00043645,120]
[360555306,1746886822328,-501.46,0.00043645,120]
[360555307,1746886822355,-327.0,0.00043645,120]
[360555308,1746886822397,-132937.05260891,0.00043645,30]
[360555309,1746886822427,-2346.0,0.00043645,46]
[360555310,1746886822455,-3509.0,0.00043645,50]
[360555311,1746886822483,-800.0,0.00043645,30]
[360555312,1746886822512,-5000.0,0.00043645,120]
[360555313,1746886822540,-5000.0,0.00043645,120]
[360555314,1746886822569,-5000.0,0.00043645,120]
[360555315,1746886822596,-5000.0,0.00043645,120]
[360555316,1746886822625,-5000.0,0.00043645,120]
[360555317,1746886822653,-5000.0,0.00043645,120]
[360555318,1746886822681,-5000.0,0.00043645,120]
[360555319,1746886822710,-5000.0,0.00043645,120]
[360555320,1746886822737,-5000.0,0.00043645,120]
[360555321,1746886822764,-15886.10395024,0.00043645,120]
[360555322,1746886822791,-186.30058948,0.00043645,120]
[360555323,1746886822819,-500.0,0.00043645,120]
[360555324,1746886822847,-409.00305758,0.00043645,120]
[360555325,1746886822874,-189.7706204,0.00043645,60]
[360555326,1746886822897,-978.0,0.00043645,120]
[360555327,1746886822927,-62453.47962368,0.00043645,30]
[360555328,1746886822953,-1097.41152825,0.00043645,120]
[360555329,1746886822979,-455.7289362,0.00043645,60]
[360555330,1746886823005,-1690.15133741,0.00043645,120]
[360555331,1746886823285,-693.04232904,0.00043645,120]
[360555332,1746886823312,-828.33502965,0.00043645,45]
[360555333,1746886823347,-23195.91542646,0.00043645,120]
[360555334,1746886823374,-1188.73305358,0.00043645,120]
[360555335,1746886823400,-7922.0,0.00043645,30]
[360555336,1746886823430,-28288.0,0.00043645,120]
[360555337,1746886823456,-4094.87721569,0.00043645,120]
[360555338,1746886823482,-904574.0,0.00043645,30]
[360555339,1746886823508,-1099.60205106,0.00043645,30]
[360555340,1746886823533,-100507.29937712,0.00043645,120]
[360555341,1746886823560,-182.98430106,0.00043645,120]
[360555342,1746886823587,-11800.0,0.00043645,120]
[360555343,1746886823615,-1032.0,0.00043645,120]
[360555344,1746886823642,-720000.0,0.00043645,30]
[360555345,1746886823670,-500.0,0.00043645,120]
[360555346,1746886823701,-500.0,0.00043645,120]
[360555347,1746886823728,-10213.78371249,0.00043645,30]
[360555348,1746886823756,-3218.77344322,0.00043645,120]
[360555349,1746886823783,-245.12964366,0.00043645,30]
[360555350,1746886823812,-7940.24745,0.00043645,30]
[360555351,1746886823840,-500.0,0.00043645,120]
[360555352,1746886823868,-500.0,0.00043645,120]
[360555353,1746886823895,-500.0,0.00043645,120]
[360555354,1746886823920,-500.0,0.00043645,120]
[360555355,1746886823946,-500.0,0.00043645,120]
[360555356,1746886823972,-500.0,0.00043645,120]
[360555357,1746886823997,-500.0,0.00043645,120]
[360555358,1746886824022,-500.0,0.00043645,120]
[360555359,1746886824049,-393.8,0.00043645,120]
[360555360,1746886824076,-500.0,0.00043645,120]
[360555361,1746886824117,-500.0,0.00043645,120]
[360555362,1746886824150,-500.0,0.00043645,120]
[360555363,1746886824180,-500.0,0.00043645,120]
[360555364,1746886824210,-500.0,0.00043645,120]
[360555365,1746886824240,-500.0,0.00043645,120]
[360555366,1746886824268,-500.0,0.00043645,120]
[360555367,1746886824297,-500.0,0.00043645,120]
[360555368,1746886824329,-500.0,0.00043645,120]
[360555369,1746886824358,-500.0,0.00043645,120]
[360555370,1746886824388,-500.0,0.00043645,120]
[360555371,1746886824417,-500.0,0.00043645,120]
[360555372,1746886824446,-500.0,0.00043645,120]
[360555373,1746886824476,-500.0,0.00043645,120]
[360555374,1746886824505,-500.0,0.00043645,120]
[360555375,1746886824535,-500.0,0.00043645,120]
[360555376,1746886824567,-500.0,0.00043645,120]
[360555377,1746886824597,-511.63,0.00043645,120]
[360555378,1746886824625,-314848.16242409,0.00043645,60]
[360555379,1746886824654,-200071.61063823,0.00043645,120]
[360555380,1746886824683,-15443.38765134,0.00043645,120]
[360555381,1746886824711,-156.6228986,0.00043645,120]
[360555382,1746886824740,-2300.0,0.00043645,120]
[360555383,1746886824768,-2970.0,0.00043645,30]
[360555384,1746886824796,-40259.43390599,0.00043645,30]
[360555385,1746886824822,-555.14362887,0.00043645,120]
[360555386,1746886824848,-1000.0,0.00043645,120]
[360555387,1746886824878,-1000.0,0.00043645,120]
[360555388,1746886824905,-1000.0,0.00043645,120]
[360555389,1746886824932,-744492.60774983,0.00043645,60]
[360555390,1746886827861,-1254167.89868626,0.00043649,60]
[360555391,1746886827888,-485.86712746,0.00043649,120]
[360555392,1746886827917,-500.0,0.00043649,120]
[360555393,1746886827943,-3669.55482545,0.00043649,120]
[360555394,1746886827970,-5000.0,0.00043649,35]
[360555395,1746886827996,-5007.54980861,0.00043649,30]
[360555396,1746886828023,-624.2,0.00043649,120]
[360555397,1746886828051,-1418375.61374517,0.00043649,30]
[360555398,1746886828078,-34414.52245288,0.00043649,30]
[360555399,1746886828104,-1000.0,0.00043649,120]
[360555400,1746886828131,-1000.0,0.00043649,120]
[360555401,1746886828158,-170.1533055,0.00043649,120]
[360555402,1746886828184,-170.1533055,0.00043649,120]
[360555403,1746886828212,-90411.65353727,0.00043649,120]
[360555404,1746886828238,-160.0,0.00043649,30]
[360555405,1746886828443,-160.0,0.00043649,30]
[360555406,1746886828471,-160.0,0.00043649,30]
[360555407,1746886828498,-160.0,0.00043649,30]
[360555408,1746886828526,-160.0,0.00043649,30]
[360555409,1746886828553,-160.0,0.00043649,30]
[360555410,1746886828580,-160.0,0.00043649,30]
[360555411,1746886828607,-160.0,0.00043649,30]
[360555412,1746886828635,-160.0,0.00043649,30]
[360555413,1746886828667,-160.0,0.00043649,30]
[360555414,1746886828693,-160.0,0.00043649,30]
[360555415,1746886828720,-160.0,0.00043649,30]
[360555416,1746886828747,-160.0,0.00043649,30]
[360555417,1746886828773,-160.0,0.00043649,30]
[360555418,1746886828800,-160.0,0.00043649,30]
[360555419,1746886828826,-160.0,0.00043649,30]
[360555420,1746886828851,-160.0,0.00043649,30]
[360555421,1746886828877,-160.0,0.00043649,30]
[360555422,1746886828903,-160.0,0.00043649,30]
[360555423,1746886828928,-160.0,0.00043649,30]
[360555424,1746886828954,-160.0,0.00043649,30]
[360555425,1746886828979,-160.0,0.00043649,30]
[360555426,1746886829005,-160.0,0.00043649,30]
[360555427,1746886829030,-160.0,0.00043649,30]
[360555428,1746886829059,-160.0,0.00043649,30]
[360555429,1746886829085,-160.0,0.00043649,30]
[360555430,1746886829110,-160.0,0.00043649,30]
[360555431,1746886829137,-160.0,0.00043649,30]
[360555432,1746886829164,-160.0,0.00043649,30]
[360555433,1746886829191,-160.0,0.00043649,30]
[360555434,1746886829218,-577.8364,0.00043649,30]
[360555435,1746886829247,-1109.67047119,0.00043649,120]
[360555436,1746886829273,-560.82780142,0.00043649,30]
[360555437,1746886829301,-167.50308762,0.00043649,120]
[360555438,1746886829329,-248.599999,0.00043649,30]
[360555439,1746886829356,-216.8,0.00043649,30]
[360555440,1746886829381,-208.4,0.00043649,30]
[360555441,1746886829411,-500.0,0.00043649,120]
[360555442,1746886829438,-357.18918056,0.00043649,120]
[360555443,1746886829465,-174.93345088,0.00043649,60]
[360555444,1746886829493,-6620.23243751,0.00043649,120]
[360555445,1746886829520,-204.0,0.00043649,120]
[360555446,1746886829546,-296.10289454,0.00043649,120]
[360555447,1746886829572,-221.50297989,0.00043649,120]
[360555448,1746886829598,-201.71637071,0.00043649,120]
[360555449,1746886829625,-2117.41908673,0.00043649,120]
[360555450,1746886829653,-2064.0,0.00043649,30]
[360555451,1746886829681,-292.03614129,0.00043649,120]
[360555452,1746886829710,-1576.17014571,0.00043649,120]
[360555453,1746886829737,-2061.74857601,0.00043649,120]
[360555454,1746886829765,-2311.3,0.00043649,120]
[360555455,1746886829793,-435.92888623,0.00043649,120]
[360555456,1746886829819,-183.15712996,0.00043649,60]
[360555457,1746886829845,-150.0,0.00043649,30]
[360555458,1746886829873,-596.17498612,0.00043649,120]
[360555459,1746886829900,-201986.81368472,0.00043649,120]
[360555460,1746886829925,-263.9467532,0.00043649,120]
[360555461,1746886829951,-196716.0,0.00043649,60]
[360555462,1746886829979,-150.0,0.00043649,120]